[Event "*** Titled Tuesday Blitz"]
[Site "Chess.com"]
[Date "2020.02.04"]
[Round "3"]
[White "killer311"]
[Black "Witik"]
[Result "0-1"]
[WhiteElo "2235"]
[BlackElo "2590"]
[TimeControl "180+2"]
[EndTime "9:39:08 PST"]
[Termination "Witik won by resignation"]

1. d4 {[%clk 0:02:50.3]} 1... Nf6 {[%clk 0:02:59.8]} 2. Nf3 {[%clk 0:02:48.3]}
2... g6 {[%clk 0:02:59.1]} 3. c4 {[%clk 0:02:45.7]} 3... Bg7 {[%clk 0:03:00.3]}
4. Nc3 {[%clk 0:02:46.7]} 4... O-O {[%clk 0:03:01.6]} 5. g3 {[%clk 0:02:48]}
5... d6 {[%clk 0:03:01.2]} 6. Bg2 {[%clk 0:02:49.1]} 6... Nc6 {[%clk 0:03:01.7]}
7. O-O {[%clk 0:02:46.2]} 7... a6 {[%clk 0:03:02.8]} 8. Qd3 {[%clk 0:02:46.9]}
8... Nd7 {[%clk 0:02:56.5]} 9. e4 {[%clk 0:02:41.9]} 9... e5 {[%clk 0:02:54.6]}
10. d5 {[%clk 0:02:42.4]} 10... Nb4 {[%clk 0:02:51.4]} 11. Qd2 {[%clk
0:02:38.9]} 11... a5 {[%clk 0:02:53.3]} 12. a3 {[%clk 0:02:39.1]} 12... Na6
{[%clk 0:02:54.2]} 13. b3 {[%clk 0:02:40.2]} 13... Nac5 {[%clk 0:02:47.4]} 14.
Qc2 {[%clk 0:02:39.8]} 14... f5 {[%clk 0:02:48.2]} 15. Bg5 {[%clk 0:02:38.1]}
15... Bf6 {[%clk 0:02:45.5]} 16. Bxf6 {[%clk 0:02:37.6]} 16... Nxf6 {[%clk
0:02:46.2]} 17. Nd2 {[%clk 0:02:36.1]} 17... f4 {[%clk 0:02:13]} 18. b4 {[%clk
0:02:33.6]} 18... Na6 {[%clk 0:02:12.4]} 19. Rab1 {[%clk 0:02:28.4]} 19... g5
{[%clk 0:02:08.7]} 20. Nb5 {[%clk 0:02:17.4]} 20... c6 {[%clk 0:01:57]} 21. Nc3
{[%clk 0:02:09.9]} 21... axb4 {[%clk 0:01:58.1]} 22. axb4 {[%clk 0:02:09.3]}
22... c5 {[%clk 0:01:59.7]} 23. bxc5 {[%clk 0:02:04.5]} 23... Nxc5 {[%clk
0:02:00.5]} 24. Nb3 {[%clk 0:02:02.5]} 24... b6 {[%clk 0:01:55.9]} 25. Nxc5
{[%clk 0:02:02.5]} 25... bxc5 {[%clk 0:01:57.8]} 26. Ra1 {[%clk 0:02:02.4]}
26... Bd7 {[%clk 0:01:34.3]} 27. Qb2 {[%clk 0:01:46.7]} 27... Rb8 {[%clk
0:01:33.2]} 28. Qa3 {[%clk 0:01:41.1]} 28... Rb4 {[%clk 0:01:14.8]} 29. Qa6
{[%clk 0:01:36.7]} 29... Qc7 {[%clk 0:00:59.8]} 30. Rfb1 {[%clk 0:01:05.3]}
30... Rfb8 {[%clk 0:00:56.1]} 31. Rxb4 {[%clk 0:01:03.9]} 31... cxb4 {[%clk
0:00:51.4]} 32. Nd1 {[%clk 0:00:51.1]} 32... Be8 {[%clk 0:00:23.8]} 33. Nb2
{[%clk 0:00:46.9]} 33... Nd7 {[%clk 0:00:23.8]} 34. Qc6 {[%clk 0:00:40.5]} 34...
Qxc6 {[%clk 0:00:21.5]} 35. dxc6 {[%clk 0:00:40.5]} 35... Nc5 {[%clk 0:00:23.4]}
36. c7 {[%clk 0:00:38.5]} 36... Rc8 {[%clk 0:00:24.8]} 37. Rd1 {[%clk
0:00:37.1]} 37... Nb7 {[%clk 0:00:14.5]} 38. Bh3 {[%clk 0:00:21.8]} 38... Rxc7
{[%clk 0:00:14.9]} 39. Be6+ {[%clk 0:00:22.8]} 39... Bf7 {[%clk 0:00:15.5]} 40.
Bd5 {[%clk 0:00:24]} 40... Nc5 {[%clk 0:00:11]} 41. Bxf7+ {[%clk 0:00:23.4]}
41... Kxf7 {[%clk 0:00:12.9]} 42. Rxd6 {[%clk 0:00:24.5]} 42... Nxe4 {[%clk
0:00:14.3]} 43. Rb6 {[%clk 0:00:25.6]} 43... Rd7 {[%clk 0:00:12]} 44. Rxb4
{[%clk 0:00:23]} 44... f3 {[%clk 0:00:11.1]} 45. Kf1 {[%clk 0:00:21.4]} 45...
Rd2 {[%clk 0:00:10.8]} 46. Ke1 {[%clk 0:00:21.1]} 46... Re2+ {[%clk 0:00:11.3]}
47. Kd1 {[%clk 0:00:20.9]} 47... Nxf2+ {[%clk 0:00:12.2]} 48. Kc1 {[%clk
0:00:22.3]} 48... Rxb2 {[%clk 0:00:08.7]} 49. Kxb2 {[%clk 0:00:21.9]} 49... Nd3+
{[%clk 0:00:09.8]} 50. Kc3 {[%clk 0:00:22.5]} 50... Nxb4 {[%clk 0:00:11.7]} 51.
Kxb4 {[%clk 0:00:22.9]} 51... f2 {[%clk 0:00:12.9]} 52. c5 {[%clk 0:00:24.8]}
52... f1=Q {[%clk 0:00:14.8]} 53. c6 {[%clk 0:00:26.7]} 53... Ke6 {[%clk
0:00:16.1]} 0-1

[Event "*** Titled Tuesday Blitz"]
[Site "Chess.com"]
[Date "2020.02.04"]
[Round "3"]
[White "albi1999"]
[Black "W_Amadeus"]
[Result "1-0"]
[WhiteElo "2514"]
[BlackElo "2734"]
[TimeControl "180+2"]
[EndTime "9:39:29 PST"]
[Termination "albi1999 won by resignation"]

1. d4 {[%clk 0:03:01.9]} 1... Nf6 {[%clk 0:03:00.6]} 2. c4 {[%clk 0:03:02.4]}
2... e6 {[%clk 0:03:01.7]} 3. Nf3 {[%clk 0:03:03.2]} 3... d5 {[%clk 0:03:02.2]}
4. g3 {[%clk 0:03:04.5]} 4... Be7 {[%clk 0:03:00.2]} 5. Bg2 {[%clk 0:03:05.3]}
5... O-O {[%clk 0:03:01.7]} 6. Nc3 {[%clk 0:03:06.8]} 6... dxc4 {[%clk 0:03:00]}
7. Ne5 {[%clk 0:03:07.1]} 7... c5 {[%clk 0:03:00]} 8. dxc5 {[%clk 0:03:08.1]}
8... Qxd1+ {[%clk 0:03:00.3]} 9. Nxd1 {[%clk 0:03:09.6]} 9... Bxc5 {[%clk
0:03:01.3]} 10. O-O {[%clk 0:02:55.4]} 10... Nc6 {[%clk 0:02:40.6]} 11. Bxc6
{[%clk 0:02:55.8]} 11... bxc6 {[%clk 0:02:41.6]} 12. Be3 {[%clk 0:02:57.7]}
12... Bb6 {[%clk 0:02:22]} 13. Bxb6 {[%clk 0:02:58.4]} 13... axb6 {[%clk
0:02:23.4]} 14. Nc3 {[%clk 0:03:00.3]} 14... Nd5 {[%clk 0:02:05]} 15. a4 {[%clk
0:02:56.2]} 15... b5 {[%clk 0:01:18.3]} 16. Nxc6 {[%clk 0:01:56]} 16... Nxc3
{[%clk 0:01:07.3]} 17. bxc3 {[%clk 0:01:55.1]} 17... bxa4 {[%clk 0:00:56.3]} 18.
Ne5 {[%clk 0:01:43.4]} 18... Bb7 {[%clk 0:00:24.7]} 19. Nxc4 {[%clk 0:01:42]}
19... Bc6 {[%clk 0:00:24.9]} 20. Rfb1 {[%clk 0:01:38.9]} 20... Rfb8 {[%clk
0:00:23.1]} 21. Nb6 {[%clk 0:01:15.2]} 21... Ra6 {[%clk 0:00:04.6]} 22. Nd5
{[%clk 0:01:06.6]} 22... Rxb1+ {[%clk 0:00:03.3]} 23. Rxb1 {[%clk 0:01:08.5]}
23... h6 {[%clk 0:00:03.4]} 24. Rb8+ {[%clk 0:01:02.8]} 24... Kh7 {[%clk
0:00:04.2]} 25. Nb4 {[%clk 0:01:04.7]} 25... Ra8 {[%clk 0:00:04.3]} 26. Rxa8
{[%clk 0:00:54.2]} 26... Bxa8 {[%clk 0:00:05.4]} 27. Nc2 {[%clk 0:00:55.2]}
27... Bd5 {[%clk 0:00:04.9]} 28. f3 {[%clk 0:00:54.7]} 28... Bb3 {[%clk
0:00:05.5]} 29. Na3 {[%clk 0:00:55.3]} 29... Kg6 {[%clk 0:00:06.4]} 30. Kf2
{[%clk 0:00:56.3]} 30... Kf5 {[%clk 0:00:07.7]} 31. Ke3 {[%clk 0:00:57.5]} 31...
Ke5 {[%clk 0:00:09]} 32. c4 {[%clk 0:00:59.1]} 32... f5 {[%clk 0:00:05.6]} 33.
f4+ {[%clk 0:00:58.8]} 33... Kd6 {[%clk 0:00:05.8]} 34. Kd4 {[%clk 0:01:00.7]}
34... g5 {[%clk 0:00:05.7]} 35. e3 {[%clk 0:01:02]} 35... Ba2 {[%clk 0:00:05]}
36. Nc2 {[%clk 0:01:00.1]} 36... Bb3 {[%clk 0:00:05.8]} 37. Na3 {[%clk
0:01:00.6]} 37... Kc6 {[%clk 0:00:06.1]} 38. fxg5 {[%clk 0:00:57.6]} 38... hxg5
{[%clk 0:00:06.7]} 39. h4 {[%clk 0:00:59.2]} 39... gxh4 {[%clk 0:00:07.8]} 40.
gxh4 {[%clk 0:01:01.1]} 40... Kd6 {[%clk 0:00:09.2]} 41. c5+ {[%clk 0:01:02.5]}
41... Kc6 {[%clk 0:00:04.5]} 42. h5 {[%clk 0:01:02.7]} 42... e5+ {[%clk
0:00:03.5]} 43. Kxe5 {[%clk 0:01:03.9]} 43... Kxc5 {[%clk 0:00:05.1]} 44. h6
{[%clk 0:01:05.1]} 44... Bg8 {[%clk 0:00:05.2]} 45. Kxf5 {[%clk 0:00:59.3]}
45... Kb4 {[%clk 0:00:04.9]} 46. Nb1 {[%clk 0:00:56.8]} 46... Bh7+ {[%clk
0:00:05.2]} 47. Kf4 {[%clk 0:00:50.6]} 47... Bxb1 {[%clk 0:00:03]} 48. e4 {[%clk
0:00:51.4]} 48... a3 {[%clk 0:00:03.3]} 49. h7 {[%clk 0:00:52.3]} 49... Kb3
{[%clk 0:00:04.2]} 50. h8=Q {[%clk 0:00:53.1]} 50... Bxe4 {[%clk 0:00:04.7]} 51.
Kxe4 {[%clk 0:00:52.5]} 51... Ka2 {[%clk 0:00:06.2]} 52. Kd3 {[%clk 0:00:52.6]}
52... Kb1 {[%clk 0:00:07.1]} 53. Qb8+ {[%clk 0:00:50.2]} 53... Kc1 {[%clk
0:00:05.4]} 54. Qc7+ {[%clk 0:00:47.7]} 54... Kb1 {[%clk 0:00:05.5]} 55. Qc2+
{[%clk 0:00:47.5]} 55... Ka1 {[%clk 0:00:06.7]} 56. Kc3 {[%clk 0:00:47.3]} 1-0

[Event "*** Titled Tuesday Blitz"]
[Site "Chess.com"]
[Date "2020.02.04"]
[Round "3"]
[White "OhanyanEminChess"]
[Black "Tjktiger"]
[Result "0-1"]
[WhiteElo "2457"]
[BlackElo "2752"]
[TimeControl "180+2"]
[EndTime "9:39:47 PST"]
[Termination "Tjktiger won by resignation"]

1. e4 {[%clk 0:03:01.9]} 1... c5 {[%clk 0:03:00.8]} 2. Nf3 {[%clk 0:03:02.8]}
2... g6 {[%clk 0:03:01.9]} 3. d4 {[%clk 0:03:03.7]} 3... cxd4 {[%clk 0:03:02.9]}
4. Nxd4 {[%clk 0:03:05.6]} 4... Bg7 {[%clk 0:03:03.7]} 5. Nc3 {[%clk 0:03:07]}
5... Nc6 {[%clk 0:03:04.9]} 6. Be3 {[%clk 0:03:08.5]} 6... Nf6 {[%clk
0:03:06.1]} 7. Nxc6 {[%clk 0:03:09.6]} 7... bxc6 {[%clk 0:03:07.2]} 8. e5 {[%clk
0:03:11.1]} 8... Ng8 {[%clk 0:03:08.4]} 9. Bd4 {[%clk 0:03:12.6]} 9... Qa5
{[%clk 0:03:08.1]} 10. Bc4 {[%clk 0:03:13.4]} 10... Bxe5 {[%clk 0:03:07.3]} 11.
O-O {[%clk 0:03:14.7]} 11... f6 {[%clk 0:03:07.4]} 12. Qd2 {[%clk 0:03:01.1]}
12... d6 {[%clk 0:03:03.4]} 13. Rfe1 {[%clk 0:02:51.8]} 13... Rb8 {[%clk
0:03:03.3]} 14. Bb3 {[%clk 0:02:44.7]} 14... h5 {[%clk 0:02:57.6]} 15. Kh1
{[%clk 0:02:29.5]} 15... Nh6 {[%clk 0:02:53.7]} 16. f4 {[%clk 0:02:29.7]} 16...
Bxd4 {[%clk 0:02:47.2]} 17. Qxd4 {[%clk 0:02:31.6]} 17... Kf8 {[%clk 0:01:14.9]}
18. Rxe7 {[%clk 0:02:16.8]} 18... Kxe7 {[%clk 0:01:16.8]} 19. Re1+ {[%clk
0:02:16.9]} 19... Kd7 {[%clk 0:01:14.3]} 20. Qxf6 {[%clk 0:02:16.7]} 20... Re8
{[%clk 0:00:58.9]} 21. Qg7+ {[%clk 0:02:14.9]} 21... Kd8 {[%clk 0:00:59.2]} 22.
Qf6+ {[%clk 0:01:55.4]} 22... Kd7 {[%clk 0:00:59.4]} 23. Qg7+ {[%clk 0:01:46.6]}
23... Kd8 {[%clk 0:01:00.4]} 24. Rxe8+ {[%clk 0:01:47.6]} 24... Kxe8 {[%clk
0:01:01.5]} 25. Qxg6+ {[%clk 0:01:47.9]} 25... Kd7 {[%clk 0:00:51.6]} 26. Qxh6
{[%clk 0:01:36.3]} 26... Qf5 {[%clk 0:00:41.1]} 27. Qg7+ {[%clk 0:00:55.6]}
27... Kd8 {[%clk 0:00:41.5]} 28. Qd4 {[%clk 0:00:49.1]} 28... Qc5 {[%clk
0:00:23.6]} 29. Qxc5 {[%clk 0:00:21.3]} 29... dxc5 {[%clk 0:00:24.1]} 30. Na4
{[%clk 0:00:22.9]} 30... c4 {[%clk 0:00:24.9]} 31. Bxc4 {[%clk 0:00:24.3]} 31...
Bf5 {[%clk 0:00:23.5]} 32. c3 {[%clk 0:00:20.4]} 32... Bc2 {[%clk 0:00:19.9]}
33. b3 {[%clk 0:00:14.9]} 33... Bb1 {[%clk 0:00:19.4]} 34. b4 {[%clk 0:00:11.9]}
34... Ke7 {[%clk 0:00:20.7]} 35. Nc5 {[%clk 0:00:05]} 35... Rd8 {[%clk 0:00:22]}
36. Kg1 {[%clk 0:00:03.5]} 36... Rd2 {[%clk 0:00:22.2]} 37. h3 {[%clk
0:00:03.4]} 37... Rc2 {[%clk 0:00:21.2]} 38. Bb3 {[%clk 0:00:03.1]} 38... Rxc3
{[%clk 0:00:21.6]} 39. Kf2 {[%clk 0:00:03.6]} 39... a5 {[%clk 0:00:22.1]} 40.
Na4 {[%clk 0:00:04.8]} 40... Rd3 {[%clk 0:00:18.9]} 41. bxa5 {[%clk 0:00:06]}
41... Bxa2 {[%clk 0:00:18.6]} 42. Bxa2 {[%clk 0:00:03.5]} 42... Rd2+ {[%clk
0:00:18.2]} 43. Kf3 {[%clk 0:00:03.5]} 43... Rxa2 {[%clk 0:00:20.1]} 44. Nc5
{[%clk 0:00:03.5]} 44... Rxa5 {[%clk 0:00:21.3]} 45. Ne4 {[%clk 0:00:04.9]}
45... Ra3+ {[%clk 0:00:21.5]} 46. Ke2 {[%clk 0:00:06]} 46... Ke6 {[%clk
0:00:21.9]} 47. g4 {[%clk 0:00:07.3]} 47... h4 {[%clk 0:00:16.6]} 48. Ng5+
{[%clk 0:00:06.2]} 48... Kf6 {[%clk 0:00:13.8]} 49. Nf3 {[%clk 0:00:05.9]} 49...
Ke6 {[%clk 0:00:12]} 50. Nxh4 {[%clk 0:00:04.2]} 50... Rxh3 {[%clk 0:00:12.5]}
51. Nf3 {[%clk 0:00:05]} 51... Kd5 {[%clk 0:00:11]} 52. f5 {[%clk 0:00:03.9]}
52... Rg3 {[%clk 0:00:10.9]} 53. g5 {[%clk 0:00:04.2]} 53... Ke4 {[%clk
0:00:11.6]} 54. Nh4 {[%clk 0:00:02.9]} 54... Rxg5 {[%clk 0:00:10.5]} 55. f6
{[%clk 0:00:04.5]} 55... Rg4 {[%clk 0:00:08.3]} 56. Nf3 {[%clk 0:00:03.3]} 56...
Rg2+ {[%clk 0:00:08.3]} 57. Kf1 {[%clk 0:00:03.4]} 57... Kxf3 {[%clk 0:00:09.5]}
58. f7 {[%clk 0:00:04.6]} 58... Rf2+ {[%clk 0:00:11]} 59. Ke1 {[%clk 0:00:06.3]}
59... Ke3 {[%clk 0:00:12.2]} 60. f8=Q {[%clk 0:00:07.3]} 60... Rxf8 {[%clk
0:00:13.4]} 61. Kd1 {[%clk 0:00:09.2]} 61... Kd3 {[%clk 0:00:14.4]} 0-1

[Event "*** Titled Tuesday Blitz"]
[Site "Chess.com"]
[Date "2020.02.04"]
[Round "3"]
[White "bazar-wokzal"]
[Black "LiemLe"]
[Result "0-1"]
[WhiteElo "2549"]
[BlackElo "2993"]
[TimeControl "180+2"]
[EndTime "9:39:47 PST"]
[Termination "LiemLe won by resignation"]

1. e4 {[%clk 0:03:00.7]} 1... c5 {[%clk 0:03:01.1]} 2. c3 {[%clk 0:03:01.3]}
2... d5 {[%clk 0:02:58.9]} 3. exd5 {[%clk 0:03:02.2]} 3... Qxd5 {[%clk
0:03:00.8]} 4. d4 {[%clk 0:03:03.7]} 4... g6 {[%clk 0:03:01.2]} 5. dxc5 {[%clk
0:03:04.1]} 5... Qxc5 {[%clk 0:02:59.7]} 6. Be3 {[%clk 0:03:04.5]} 6... Qc7
{[%clk 0:03:00.5]} 7. Bxa7 {[%clk 0:03:05.3]} 7... Nc6 {[%clk 0:03:01]} 8. Be3
{[%clk 0:03:05.1]} 8... Nh6 {[%clk 0:02:59.2]} 9. Nf3 {[%clk 0:03:05.2]} 9...
Nf5 {[%clk 0:02:59.7]} 10. Qd2 {[%clk 0:03:00.7]} 10... Bg7 {[%clk 0:02:52.3]}
11. Na3 {[%clk 0:02:55.5]} 11... Rxa3 {[%clk 0:02:44.6]} 12. bxa3 {[%clk
0:02:55.8]} 12... O-O {[%clk 0:02:44.7]} 13. Rc1 {[%clk 0:02:50.2]} 13... Rd8
{[%clk 0:02:43.2]} 14. Qc2 {[%clk 0:02:33]} 14... Nxe3 {[%clk 0:02:42.2]} 15.
fxe3 {[%clk 0:02:33.6]} 15... Qb6 {[%clk 0:02:38.9]} 16. Kf2 {[%clk 0:02:26.7]}
16... Bf5 {[%clk 0:02:36.2]} 17. Qb3 {[%clk 0:02:23]} 17... Qc5 {[%clk
0:02:33.4]} 18. Bc4 {[%clk 0:02:16.3]} 18... Ne5 {[%clk 0:02:27]} 19. Nxe5
{[%clk 0:02:08.9]} 19... Rd2+ {[%clk 0:02:27.9]} 20. Be2 {[%clk 0:01:58.2]}
20... Qxe5 {[%clk 0:02:12.6]} 21. Rhd1 {[%clk 0:01:46.4]} 21... Bh6 {[%clk
0:02:13.5]} 22. c4 {[%clk 0:01:40.2]} 22... Rb2 {[%clk 0:02:13.2]} 23. Qc3
{[%clk 0:01:34.4]} 23... Qxc3 {[%clk 0:01:51.2]} 24. Rxc3 {[%clk 0:01:35.2]}
24... Bg4 {[%clk 0:01:46.7]} 25. Re1 {[%clk 0:01:31.3]} 25... Rxa2 {[%clk
0:01:47.8]} 26. h3 {[%clk 0:01:31.3]} 26... Be6 {[%clk 0:01:42.1]} 27. Kf3
{[%clk 0:01:29.4]} 27... Bg7 {[%clk 0:01:27.3]} 28. Rb3 {[%clk 0:01:28.6]} 28...
Bd7 {[%clk 0:01:28.4]} 29. Bd3 {[%clk 0:01:19.5]} 29... Ba4 {[%clk 0:01:14.3]}
30. Rb6 {[%clk 0:01:02.8]} 30... f5 {[%clk 0:01:09.8]} 31. c5 {[%clk 0:00:45.8]}
31... Rxa3 {[%clk 0:01:10.3]} 32. Bc4+ {[%clk 0:00:45.9]} 32... Kf8 {[%clk
0:01:11.5]} 33. Kf2 {[%clk 0:00:32.6]} 33... Bc3 {[%clk 0:00:56.1]} 34. Re2
{[%clk 0:00:29.8]} 34... Bc6 {[%clk 0:00:41.6]} 35. Ra2 {[%clk 0:00:22]} 35...
Rxa2+ {[%clk 0:00:35.4]} 36. Bxa2 {[%clk 0:00:22.9]} 36... Kg7 {[%clk
0:00:21.3]} 37. Bc4 {[%clk 0:00:23.4]} 37... Be4 {[%clk 0:00:18.8]} 38. Rb3
{[%clk 0:00:23.6]} 38... Be5 {[%clk 0:00:18.2]} 39. Bb5 {[%clk 0:00:20]} 39...
f4 {[%clk 0:00:15.4]} 40. Ra3 {[%clk 0:00:20.4]} 40... Kf6 {[%clk 0:00:14.6]}
41. exf4 {[%clk 0:00:20.4]} 41... Bd4+ {[%clk 0:00:15.7]} 42. Kg3 {[%clk
0:00:20.6]} 42... Bxc5 {[%clk 0:00:16.9]} 43. Ra4 {[%clk 0:00:21.6]} 43... Bd5
{[%clk 0:00:17.1]} 44. Bc4 {[%clk 0:00:22.7]} 44... Bc6 {[%clk 0:00:17.9]} 45.
Ra5 {[%clk 0:00:23.9]} 45... Bd6 {[%clk 0:00:19]} 46. Bd5 {[%clk 0:00:24.6]}
46... b6 {[%clk 0:00:18.3]} 47. Bxc6 {[%clk 0:00:25.1]} 47... bxa5 {[%clk
0:00:20.2]} 48. Kf3 {[%clk 0:00:25.7]} 48... Ke6 {[%clk 0:00:19.6]} 49. Ke4
{[%clk 0:00:26.5]} 49... h6 {[%clk 0:00:20.5]} 50. g4 {[%clk 0:00:27.2]} 50...
Kf6 {[%clk 0:00:21.8]} 51. Bd7 {[%clk 0:00:27.1]} 51... Bb4 {[%clk 0:00:21.7]}
52. h4 {[%clk 0:00:27.6]} 52... g5 {[%clk 0:00:21.7]} 53. fxg5+ {[%clk
0:00:27.8]} 53... hxg5 {[%clk 0:00:23.6]} 54. h5 {[%clk 0:00:29.1]} 54... e6
{[%clk 0:00:22.3]} 55. Ba4 {[%clk 0:00:29.4]} 55... Ke7 {[%clk 0:00:23.1]} 56.
h6 {[%clk 0:00:29.3]} 56... Bc3 {[%clk 0:00:24.1]} 57. h7 {[%clk 0:00:29.4]}
57... Bh8 {[%clk 0:00:23.4]} 58. Kd3 {[%clk 0:00:29]} 58... Kd6 {[%clk
0:00:24.1]} 59. Ke4 {[%clk 0:00:29.6]} 59... Kc5 {[%clk 0:00:23.6]} 60. Bd7
{[%clk 0:00:29.8]} 60... e5 {[%clk 0:00:24.4]} 61. Kf5 {[%clk 0:00:28.4]} 61...
Kd4 {[%clk 0:00:25.6]} 62. Bc6 {[%clk 0:00:28.3]} 62... Kc5 {[%clk 0:00:25.8]}
63. Bd7 {[%clk 0:00:28.1]} 63... Kd5 {[%clk 0:00:25.6]} 64. Be6+ {[%clk
0:00:28.1]} 64... Kd4 {[%clk 0:00:26.2]} 65. Kxg5 {[%clk 0:00:26.4]} 65... e4
{[%clk 0:00:27.5]} 66. Kf4 {[%clk 0:00:26.5]} 66... e3 {[%clk 0:00:28.2]} 67.
Kf3 {[%clk 0:00:26.5]} 67... Kd3 {[%clk 0:00:29.6]} 68. Bd7 {[%clk 0:00:26.9]}
68... Kd2 {[%clk 0:00:29.1]} 69. Bb5 {[%clk 0:00:27.5]} 69... a4 {[%clk
0:00:30.5]} 0-1

[Event "*** Titled Tuesday Blitz"]
[Site "Chess.com"]
[Date "2020.02.04"]
[Round "3"]
[White "Volodar_Murzin"]
[Black "GMHess"]
[Result "0-1"]
[WhiteElo "2562"]
[BlackElo "2762"]
[TimeControl "180+2"]
[EndTime "9:40:04 PST"]
[Termination "GMHess won by resignation"]

1. d4 {[%clk 0:03:01.9]} 1... g6 {[%clk 0:02:59.5]} 2. c4 {[%clk 0:03:01.8]}
2... Bg7 {[%clk 0:03:01.1]} 3. Nc3 {[%clk 0:03:01.3]} 3... c5 {[%clk 0:03:02.7]}
4. dxc5 {[%clk 0:03:01.3]} 4... Na6 {[%clk 0:03:01.8]} 5. e3 {[%clk 0:03:00]}
5... Nxc5 {[%clk 0:02:56.3]} 6. Nf3 {[%clk 0:03:01.4]} 6... Bxc3+ {[%clk
0:02:56.8]} 7. bxc3 {[%clk 0:03:01.9]} 7... Nf6 {[%clk 0:02:58.5]} 8. Be2 {[%clk
0:03:01.1]} 8... Qa5 {[%clk 0:02:59]} 9. O-O {[%clk 0:03:01]} 9... O-O {[%clk
0:02:59.8]} 10. Qc2 {[%clk 0:02:56.2]} 10... d6 {[%clk 0:03:00.5]} 11. Bd2
{[%clk 0:02:57.4]} 11... Bf5 {[%clk 0:02:58.5]} 12. Qb2 {[%clk 0:02:58.6]} 12...
Nfe4 {[%clk 0:02:42.9]} 13. Be1 {[%clk 0:02:52.9]} 13... Rac8 {[%clk 0:01:58.7]}
14. Nd4 {[%clk 0:02:51.3]} 14... Bd7 {[%clk 0:01:57]} 15. Qb4 {[%clk 0:02:44.8]}
15... Qa6 {[%clk 0:01:12.6]} 16. f3 {[%clk 0:02:41.5]} 16... Nf6 {[%clk
0:01:13.3]} 17. Bh4 {[%clk 0:02:38.8]} 17... Kg7 {[%clk 0:01:10.4]} 18. e4
{[%clk 0:02:35]} 18... e5 {[%clk 0:01:03.1]} 19. Nb3 {[%clk 0:02:19.4]} 19...
Ne6 {[%clk 0:00:48]} 20. Rfd1 {[%clk 0:02:05.5]} 20... Rc6 {[%clk 0:00:47]} 21.
Bf1 {[%clk 0:01:51.9]} 21... Qb6+ {[%clk 0:00:40.6]} 22. Bf2 {[%clk 0:01:49.4]}
22... Qc7 {[%clk 0:00:29.7]} 23. Rd2 {[%clk 0:01:36.8]} 23... b6 {[%clk
0:00:25.3]} 24. Rad1 {[%clk 0:01:33.5]} 24... Nc5 {[%clk 0:00:25.6]} 25. Qa3
{[%clk 0:01:24.9]} 25... Rc8 {[%clk 0:00:20.5]} 26. Nxc5 {[%clk 0:00:27.6]}
26... bxc5 {[%clk 0:00:18.2]} 27. Rb1 {[%clk 0:00:29.2]} 27... Be6 {[%clk
0:00:15.3]} 28. Rdb2 {[%clk 0:00:25.6]} 28... Rb6 {[%clk 0:00:12.9]} 29. Rb5
{[%clk 0:00:21.5]} 29... Rcb8 {[%clk 0:00:07.3]} 30. R1b3 {[%clk 0:00:15.3]}
30... Bd7 {[%clk 0:00:06.2]} 31. Rxb6 {[%clk 0:00:16]} 31... axb6 {[%clk
0:00:07.2]} 32. Qb2 {[%clk 0:00:17]} 32... Bc6 {[%clk 0:00:07.5]} 33. Ra3 {[%clk
0:00:18.6]} 33... Nd7 {[%clk 0:00:08.3]} 34. g3 {[%clk 0:00:16.5]} 34... Qb7
{[%clk 0:00:08.7]} 35. Rb3 {[%clk 0:00:17.2]} 35... Ra8 {[%clk 0:00:08.7]} 36.
Ra3 {[%clk 0:00:15.9]} 36... Ra6 {[%clk 0:00:06.6]} 37. Rxa6 {[%clk 0:00:16.3]}
37... Qxa6 {[%clk 0:00:08.5]} 38. Bd3 {[%clk 0:00:15.8]} 38... Nf6 {[%clk
0:00:07.2]} 39. Qe2 {[%clk 0:00:16.4]} 39... Ne8 {[%clk 0:00:06.5]} 40. Be1
{[%clk 0:00:18]} 40... Nc7 {[%clk 0:00:07.3]} 41. f4 {[%clk 0:00:19.1]} 41... f6
{[%clk 0:00:06.5]} 42. fxe5 {[%clk 0:00:19.5]} 42... dxe5 {[%clk 0:00:07.4]} 43.
h4 {[%clk 0:00:21]} 43... Ne6 {[%clk 0:00:07.7]} 44. Kh2 {[%clk 0:00:20.9]}
44... h5 {[%clk 0:00:08.7]} 45. Qd2 {[%clk 0:00:21.4]} 45... Qb7 {[%clk
0:00:08.6]} 46. Qe2 {[%clk 0:00:22.1]} 46... Nd8 {[%clk 0:00:08]} 47. Bd2 {[%clk
0:00:23]} 47... Nf7 {[%clk 0:00:09.5]} 48. Kg1 {[%clk 0:00:20.4]} 48... Nd6
{[%clk 0:00:10.2]} 49. Qe3 {[%clk 0:00:20.1]} 49... Nf7 {[%clk 0:00:10]} 50. Kh2
{[%clk 0:00:19.7]} 50... Qa6 {[%clk 0:00:09.6]} 51. Be2 {[%clk 0:00:17.1]} 51...
Qxa2 {[%clk 0:00:10.3]} 52. Be1 {[%clk 0:00:15.3]} 52... Qc2 {[%clk 0:00:09.1]}
53. g4 {[%clk 0:00:13.9]} 53... hxg4 {[%clk 0:00:09.6]} 54. Kg3 {[%clk 0:00:14]}
54... Bxe4 {[%clk 0:00:09.9]} 55. Kxg4 {[%clk 0:00:13.1]} 55... Nh6+ {[%clk
0:00:09.9]} 56. Kh3 {[%clk 0:00:13.7]} 56... Bf5+ {[%clk 0:00:09]} 57. Kg3
{[%clk 0:00:14.8]} 57... Qe4 {[%clk 0:00:06.3]} 58. Qd2 {[%clk 0:00:10.5]} 58...
Bg4 {[%clk 0:00:05.2]} 59. Bxg4 {[%clk 0:00:08.4]} 59... Qxg4+ {[%clk
0:00:07.1]} 60. Kh2 {[%clk 0:00:09.4]} 60... Qf4+ {[%clk 0:00:06.5]} 61. Qxf4
{[%clk 0:00:09.9]} 61... exf4 {[%clk 0:00:08.4]} 62. Bd2 {[%clk 0:00:11.6]}
62... g5 {[%clk 0:00:09.9]} 63. Kg2 {[%clk 0:00:12.3]} 63... Kg6 {[%clk
0:00:11.1]} 64. Kf3 {[%clk 0:00:13.4]} 64... Kf5 {[%clk 0:00:12.6]} 65. hxg5
{[%clk 0:00:13.5]} 65... fxg5 {[%clk 0:00:14.5]} 66. Be1 {[%clk 0:00:14.2]}
66... Nf7 {[%clk 0:00:15.3]} 67. Ke2 {[%clk 0:00:15.8]} 67... Ne5 {[%clk
0:00:17.2]} 68. Bf2 {[%clk 0:00:17.2]} 68... Ke4 {[%clk 0:00:18.1]} 69. Bxc5
{[%clk 0:00:18.4]} 69... bxc5 {[%clk 0:00:19]} 0-1